Cogmind - Beta 15 @@@ ROGUE MODE // 2025.09.04 @ 07:06:12 Player: odium reigns Result: Destroyed by H-88 Terminator with KE Penetrator Performance ------------- Evolutions (8) 4000 Regions Visited (19) 3800 Robots Destroyed (203) 1015 Value Destroyed (8120) 8120 Prototype IDs (47) 940 Alien Tech Used (1) 200 Bonus (2718) 2718 TOTAL SCORE: 20793 Bonus ------- High Alert Combat Kills 835 Follower Combat Kills 583 Entered DSFs 500 Acquired ECA 300 Scanned by Researcher 500 Cogmind --------- Core Integrity 0/1450 Matter 153/300 Energy 92/100 System Corruption 49% Temperature Cool (0) Movement Hovering (70) Location -2/Testing Parts ------- > --- POWER (3) -------- (None) > --- PROPULSION (7) --- Centrium Leg Centrium Leg Centrium Leg Cooled Linear Gravjet > --- UTILITY (7) ------ Advanced Target Analyzer Experimental Hacking Suite System Shield > --- WEAPON (6) ------- Molecular Scythe > --- INVENTORY (5) ---- Cooled Antimatter Reactor Quantum Reactor Molecular Scythe Peak State ------------ > --- POWER ------------ Light Antimatter Reactor Light Particle Reactor > --- PROPULSION ------- Flexi-carbon Leg Centrium Leg Centrium Leg Centrium Leg Heavy Shield Leg > --- UTILITY ---------- Advanced Heat Sink Advanced Heat Sink Advanced Heat Sink Advanced Heat Sink Advanced Heat Sink Medium Storage Unit Improved Hacking Suite > --- WEAPON ----------- Heavy Dispersion Rifle Heavy Dispersion Rifle Enhanced Hardcell Cannon Enhanced Hardcell Cannon Enhanced Hardcell Cannon Enhanced Hardcell Cannon > --- INVENTORY -------- Light Quantum Reactor Heavy Siege Treads Heavy Siege Treads Heavy Siege Treads Improved System Shield Transdimensional Reconstructor Enhanced Hardcell Cannon [Rating: 157] Favorites ----------- Power Light Antimatter Reactor Engine Heavy Deuterium Engine Power Core Neutrino Core Reactor Light Antimatter Reactor Propulsion Light Treads Treads Light Treads Leg Thunder Leg Hover Unit Linear Gravjet Flight Unit Nuclear Pulse Array Utility Advanced Heat Sink Device Advanced Heat Sink Storage High-capacity Storage Unit Processor Advanced Signal Interpreter Hackware Hacking Suite Protection Improved Medium Armor Plating Weapon Gauss Rifle Energy Gun Heavy Dispersion Rifle Energy Cannon Improved EM Pulse Cannon Ballistic Gun Gauss Rifle Ballistic Cannon Enhanced Hardcell Cannon Launcher Heavy Missile Launcher Special Weapon Improved Plasma Cutter Impact Weapon Shock Maul Slashing Weapon Axe Build | -11 -10 -10 -9 -8 -7 -6 -6 -5 -4 -4 -4 -4 -4 -4 -3 -3 -3 -2 -2 ------- Run | Yrd Mat Min Mat Mat Fac Fac DSF Fac Fac Was Fac Upp Upp Zhi Pro Res Arm Res Tes Slots Evolved 16 | . . . 2 2 2 2 . 2 2 . . . . . . 2 . 2 . Power 2 | . . . . . . . . . 1 . . . . . . . . 1 . Propulsion 5 | . . . . . 1 . . 2 . . . . . . . 1 . 1 . Utility 5 | . . . . 1 . 2 . . 1 . . . . . . 1 . . . Weapon 4 | . . . 2 1 1 . . . . . . . . . . . . . . Parts Attached 290 | 7 1 3 14 18 12 8 8 57 5 1 2 4 3 4 2 8 98 5 30 Power 40 | 1 . 1 2 4 2 . . 4 1 . . 1 2 . . 2 15 . 5 Engine 11 | 1 . 1 2 2 2 . . 1 1 . . . 1 . . . . . . Core 7 | . . . . 2 . . . 3 . . . . 1 . . . 1 . . Reactor 22 | . . . . . . . . . . . . 1 . . . 2 14 . 5 Propulsion 77 | 2 . 1 2 3 3 1 4 12 2 . 1 . . . . 3 28 3 12 Treads 18 | 2 . 1 2 3 3 1 . . . . . . . . . . 6 . . Leg 26 | . . . . . . . 4 7 . . . . . . . . 8 . 7 Wheel . | . . . . . . . . . . . . . . . . . . . . Hover 6 | . . . . . . . . . 2 . . . . . . . . . 4 Flight 27 | . . . . . . . . 5 . . 1 . . . . 3 14 3 1 Utility 93 | 2 1 . 2 4 3 3 2 25 2 1 . 3 . 4 . 2 30 2 7 Device 49 | 1 . . . . 1 1 . 11 1 . . 3 . . . 1 27 2 1 Storage 11 | 1 1 . . 1 . . . 2 . 1 . . . 2 . 1 2 . . Processor 9 | . . . . 2 . 1 . 4 1 . . . . . . . . . 1 Hackware 11 | . . . . . 2 1 . 4 . . . . . 1 . . 1 . 2 Protection 13 | . . . 2 1 . . 2 4 . . . . . 1 . . . . 3 Artifact . | . . . . . . . . . . . . . . . . . . . . Weapon 80 | 2 . 1 8 7 4 4 2 16 . . 1 . 1 . 2 1 25 . 6 Energy Gun 17 | 1 . . . . . . . 7 . . . . . . . . 9 . . Energy Cannon 7 | . . . . . . 2 2 . . . . . . . 1 . 1 . 1 Ballistic Gun 23 | 1 . 1 6 7 2 . . 5 . . 1 . . . . . . . . Ballistic Cannon 14 | . . . 2 . 2 . . 2 . . . . . . . 1 7 . . Launcher 4 | . . . . . . 2 . . . . . . . . . . 2 . . Special Weapon 1 | . . . . . . . . 1 . . . . . . . . . . . Impact Weapon 6 | . . . . . . . . . . . . . . . . . 6 . . Slashing Weapon 8 | . . . . . . . . 1 . . . . 1 . 1 . . . 5 Piercing Weapon . | . . . . . . . . . . . . . . . . . . . . Special Melee Weapon . | . . . . . . . . . . . . . . . . . . . . Unidentified Prototypes 27 | . . . 1 1 1 . . 4 . . . 1 . 3 . 1 5 . 10 Corrupted Parts 8 | . . . . . . . . 1 . . . . . . . . 5 1 1 System Corruption 26 | . . . . . . . . 1 . . . . . . . . 21 2 2 Parts Lost 111 | . . 1 3 1 5 . 4 27 . . . 2 . . . 4 38 7 19 Power 15 | . . 1 1 . . . . 1 . . . . . . . 1 6 1 4 Propulsion 36 | . . . 1 . . . . 7 . . . 1 . . . . 14 6 7 Utility 31 | . . . 1 1 3 . 1 6 . . . 1 . . . 3 11 . 4 Weapon 29 | . . . . . 2 . 3 13 . . . . . . . . 7 . 4 Highest Loss Streak 24 | . . 1 2 1 2 . 2 12 . . . 2 . . . 3 24 7 7 To Critical Strikes 2 | . . . . . . . . 1 . . . . . . . . . . 1 Average Backups 10 | 5 11 14 14 17 18 13 18 12 2 7 7 5 5 5 5 4 6 4 3 Power . | 1 2 1 2 1 1 1 2 . . . . . . . . . . . . Propulsion 1 | 1 2 3 1 2 1 . 2 2 . 2 3 1 . . . 1 2 . . Utility 4 | . 2 3 4 6 9 8 9 8 1 2 2 2 2 2 3 1 . 1 . Weapon 3 | 1 5 6 5 7 6 3 4 . 1 2 . . 2 1 . . 2 1 1 Tool/Special . | . . . . . . . . . . . . . . . . . . . . Unused Backups 60 | . . . 10 8 8 . 11 8 . . 1 2 . 2 . 2 5 . 3 Power 7 | . . . 1 1 2 . 1 . . . . . . . . . . . 2 Propulsion 12 | . . . 4 4 . . 1 . . . 1 2 . . . . . . . Utility 22 | . . . 2 1 3 . 4 7 . . . . . 1 . 1 3 . . Weapon 18 | . . . 3 2 3 . 5 1 . . . . . 1 . 1 1 . 1 Tool/Special 1 | . . . . . . . . . . . . . . . . . 1 . . Average Slot Usage (%) 80 | . 97 100 98 99 98 97 94 84 56 58 62 61 62 62 66 62 77 39 35 Engine 4 | . 13 14 10 6 6 6 6 3 1 5 5 1 1 5 5 2 . . . Core 1 | . . . . 2 . . . 1 . . . . 1 5 5 4 . . . Reactor 1 | . . . . . . . . . . . . 3 3 . . 1 7 3 2 Treads 9 | . 26 28 21 18 23 19 7 . . . . . . . . . 5 . . Leg 4 | . . . . . . . 12 19 . . . . . . . . 7 . 10 Flight 4 | . . . . . . . . 4 12 10 14 15 15 15 15 15 4 16 2 Device 7 | . 14 14 1 . . 5 3 9 10 5 5 9 15 12 10 12 16 7 . Storage 5 | . 14 14 11 9 7 6 6 4 . 4 5 1 . . . . 3 . . Processor 4 | . . . . 15 8 5 6 2 1 5 5 5 5 5 5 4 . . . Hackware 5 | . . . . . 4 12 5 3 15 15 15 13 10 11 15 14 5 . 3 Protection 1 | . . . 9 2 . . 6 5 . . . . . . . . . . 2 Energy Gun 3 | . 14 7 . . . . . 5 5 . . . . . . . 10 . . Ballistic Gun 16 | . 14 20 40 44 43 6 6 5 . . 4 5 3 . . . . . . Ballistic Cannon 4 | . . . 3 . 2 19 16 3 5 . 4 5 1 . . 2 8 . . Peak Build Rating 157 | 9 10 10 24 37 47 53 62 91 72 72 78 91 91 85 93 113 157 96 146 Average Rating 70 | 5 9 9 21 31 44 50 56 76 66 62 75 83 87 82 85 104 132 81 86 On Entrance 51 | . 9 10 10 24 37 41 53 58 51 72 63 77 91 84 83 93 91 72 10 Naked Turns 6 | . . . . . . . . . . . . . . . . . 6 . . Heaviest Build 119 | 11 26 26 43 73 77 87 103 107 19 19 28 41 35 33 43 45 119 43 87 Greatest Support 210 | 40 40 40 40 40 65 65 65 115 20 20 35 35 35 35 35 47 210 49 210 Greatest Overweight (x) 31 | . 8 . 1 1 1 1 31 4 5 . . 1 . . 1 1 4 1 1 Average Overweight (x) . | . . . . . . 1 1 . . . . . . . . . . . . Largest Inventory Capacity 20 | 8 15 15 15 20 20 20 20 20 5 10 10 10 5 5 5 10 10 5 5 Average Capacity 12 | 7 14 15 15 18 20 20 20 15 5 9 10 6 5 5 5 5 8 5 5 Most Carried 20 | 8 15 15 15 20 20 19 20 20 5 10 10 10 5 5 5 6 10 5 5 Average Carried 11 | 5 12 14 14 17 18 13 18 13 3 9 8 5 5 4 4 4 8 4 3 Final Capacity 20 | 8 15 15 15 20 20 20 20 5 5 10 10 5 5 5 5 10 5 5 5 Final Carried 20 | 7 15 15 14 20 19 19 20 3 5 10 9 5 5 5 5 6 5 5 3 Class Distribution -------------------- 21% | Hacker-Mutant 17% | Executioner 12% | Mutant 10% | Scavenger-Executioner 10% | Gunner 9% | Hacker-Executioner 8% | Tank 3% | Sprinter Dominant Class ---------------- Mutant | -10/Materials Mutant | -10/Mines Tank | -9/Materials Gunner | -8/Materials Executioner | -7/Factory Hacker-Executioner | -6/Factory Executioner | -6/DSF Executioner | -5/Factory Hacker-Mutant | -4/Factory Hacker-Mutant | -4/Waste Hacker-Mutant | -4/Factory Hacker-Mutant | -4/Upper Caves Hacker-Mutant | -4/Upper Caves Hacker-Mutant | -4/Zhirov Hacker-Mutant | -3/Proximity Caves Hacker-Mutant | -3/Research Scavenger-Executioner | -3/Armory Sprinter | -2/Research Mutant | -2/Testing Resources | -11 -10 -10 -9 -8 -7 -6 -6 -5 -4 -4 -4 -4 -4 -4 -3 -3 -3 -2 -2 ----------- Run | Yrd Mat Min Mat Mat Fac Fac DSF Fac Fac Was Fac Upp Upp Zhi Pro Res Arm Res Tes Matter Collected 8595 | 286 18 94 520 1341 1291 . 483 1154 122 . . 200 184 . 96 243 2350 85 128 Remotely . | . . . . . . . . . . . . . . . . . . . . Salvage Created 8417 | 158 75 135 602 1729 1180 . 503 907 22 . . . . . 14 66 2624 160 242 Parts 422 | 13 4 17 39 99 71 . 24 36 7 . . . . . . . 94 5 13 Haulers Intercepted 11 | . 1 . 1 6 2 . . . . . . . . . . 1 . . . Recyclers Shooed 4 | 1 . . . 2 1 . . . . . . . . . . . . . . Parts Field Recycled 16 | . . . . . . . . 16 . . . . . . . . . . . Retrieved Matter 107 | . . . . . . . . 107 . . . . . . . . . . . Parts Self-Destructed . | . . . . . . . . . . . . . . . . . . . . Prevented 1 | . . . . . . . . . . . . . . . 1 . . . . Kills | -11 -10 -10 -9 -8 -7 -6 -6 -5 -4 -4 -4 -4 -4 -4 -3 -3 -3 -2 -2 ------- Run | Yrd Mat Min Mat Mat Fac Fac DSF Fac Fac Was Fac Upp Upp Zhi Pro Res Arm Res Tes Combat Hostiles Destroyed 143 | . 1 5 15 22 22 . 9 14 . . . . . . 1 . 47 5 2 Melee 10 | . . . . . . . . . . . . . . . 1 . 4 3 2 Guns 100 | . 1 5 14 22 17 . 3 10 . . . . . . . . 28 . . Cannons 29 | . . . 1 . 5 . 5 4 . . . . . . . . 14 . . Classes Destroyed 20 | 3 2 2 4 3 2 . . . . . . . . . 1 . 2 . 1 Worker 18 | 1 . . . 6 6 . . 4 1 . . . . . . . . . . Builder 3 | . . 1 . 1 . . . . 1 . . . . . . . . . . Tunneler 3 | 3 . . . . . . . . . . . . . . . . . . . Hauler 11 | . 1 . 1 6 2 . . . . . . . . . . 1 . . . Recycler 8 | 1 . . . 4 1 . . 2 . . . . . . . . . . . Operator 7 | . . . 1 1 1 . . . . . . . . . . . 3 . 1 Drone 1 | . . . . . . . . . . . . . . . 1 . . . . Watcher 9 | . . . 2 5 . . . . . . . . . . . . 2 . . Swarmer 32 | . . 3 6 9 4 . . 4 . . . . . . . . 1 5 . Cutter 1 | . . . . . . . . . . . . . . . . . 1 . . Saboteur 3 | . . . . . . . . . . . . . . . . . 3 . . Grunt 56 | . 1 2 5 6 10 . 3 . . . . . . . . . 28 . 1 Brawler 2 | . . . . 1 . . . . . . . . . . . . 1 . . Duelist 1 | . . . 1 . . . . . . . . . . . . . . . . Researcher 1 | . . . . . . . . . . . . . . . . . . . 1 Sentry 13 | . . . 3 3 2 . . 2 . . . . . . . . 3 . . Specialist 10 | . . . . . 2 . 4 . . . . . . . . . 4 . . Hunter 5 | . . . . 2 1 . . 2 . . . . . . . . . . . Programmer 16 | . . . . . 2 . 1 6 . . . . . . . . 6 . 1 Heavy 3 | . . . . 1 1 . 1 . . . . . . . . . . . . Best Kill Streak 11 | 1 1 3 6 11 5 . 5 5 2 . . . . . 1 1 6 5 2 Combat Bots Only 6 | . 1 3 6 5 4 . 5 4 . . . . . . 1 . 6 5 2 Max Kills in Single Turn 2 | 1 1 1 2 2 2 . 1 2 1 . . . . . 1 1 2 1 1 Gunslinging 1 | . . . 1 1 1 . . . . . . . . . . . . . . Exploded . | . . . . . . . . . . . . . . . . . . . . Melee 1 | . . . . . . . . . . . . . . . 1 . 1 1 1 Uniques/NPCs Destroyed . | . . . . . . . . . . . . . . . . . . . . Combat | -11 -10 -10 -9 -8 -7 -6 -6 -5 -4 -4 -4 -4 -4 -4 -3 -3 -3 -2 -2 -------- Run | Yrd Mat Min Mat Mat Fac Fac DSF Fac Fac Was Fac Upp Upp Zhi Pro Res Arm Res Tes Hostile Shots Fired 2576 | . 5 41 92 123 88 . 82 408 15 1 . 37 2 . 19 72 945 48 598 Missed 1002 | . 2 14 32 29 22 . 26 171 9 1 . 15 2 . 10 44 396 22 207 Hits 1574 | . 3 27 60 94 66 . 56 237 6 . . 22 . . 9 28 549 26 391 Melee 3 | . . . . . . . . . . . . . . . . . 3 . . Projectile 1571 | . 3 27 60 94 66 . 56 237 6 . . 22 . . 9 28 546 26 391 AOE 3 | . . . . . . . . 1 . . . . . . . . 2 . . Critical Strikes 66 | . . 1 1 3 2 . 3 9 . . . 2 . . . 3 15 . 27 Part Disruptions 11 | . . . . . 1 . . . . . . . . . . . 4 . 6 Damage Taken 29751 | . 32 334 650 1315 1181 . 1669 4618 109 . . 506 . . 151 628 9271 1020 8267 Core 4210 | . . 89 58 137 107 . 595 468 21 . . 120 . . 99 176 963 392 985 Absorbed by Shields 9 | . . . . . . . . . . . . . . . . . 9 . . Redirected to Shielding 202 | . . . 161 41 . . . . . . . . . . . . . . . Ignored by Resistances 29 | . . . . . . . . 29 . . . . . . . . . . . Regen/Repaired (Parts) 794 | . . . . . . 160 . 130 . . 118 . . . . . . . 386 Core Remaining (%) 64 | 100 . 64 85 75 84 . 30 53 . . . . . . 79 . 12 . . Volleys Fired 401 | 16 8 21 33 64 52 . 18 53 3 . . . . . . 22 109 . 2 Largest 6 | 2 2 2 4 5 6 . 6 6 2 . . . . . . 1 6 . 1 Hottest 554 | 60 60 60 114 134 180 . 312 233 53 . . . . . . 47 554 . 110 Shots Fired 1520 | 31 15 42 132 320 261 . 94 191 6 . . 1 . . . 22 403 . 2 Gun 1157 | 31 15 42 124 320 230 . 18 159 3 . . . . . . . 215 . . Cannon 343 | . . . 8 . 31 . 74 14 3 . . 1 . . . 22 188 . 2 Launcher 14 | . . . . . . . 2 12 . . . . . . . . . . . Special 6 | . . . . . . . . 6 . . . . . . . . . . . Kinetic 1099 | 16 8 24 132 320 261 . 58 103 3 . . 1 . . . 22 151 . . Thermal 355 | 15 7 18 . . . . . 60 3 . . . . . . . 252 . . Explosive 14 | . . . . . . . 2 12 . . . . . . . . . . . Electromagnetic 52 | . . . . . . . 34 16 . . . . . . . . . . 2 Robot Hit Streak 24 | 9 3 8 9 24 9 . 17 10 4 . . . . . . 4 11 . 1 Robot Miss Streak 7 | 3 1 3 4 4 4 . 3 6 . . . . . . . 7 7 . 1 Penetration Max 1 | . . . . 1 1 . . . . . . . . . . . . . . Secondary Targets 22 | . . 3 6 7 5 . . . . . . . . . . . 1 . . Max Gunslinging Chain 2 | . . 1 2 2 1 . . . . . . . . . . . 1 . . Shots Hit Robots 873 | 20 9 24 75 199 132 . 56 98 2 . . . . . 1 9 218 6 24 Core Hits 344 | 6 4 11 31 77 57 . 16 44 2 . . . . . 1 3 86 1 5 Critical Kills 13 | . . . . . 1 . . . . . . . . . . . 12 . . Critical Parts Destroyed 38 | . . . . 2 1 . . 3 . . . . . . . . 24 2 6 Critical Strikes 66 | . . . . 2 3 . 1 4 . . . . . . . 1 44 2 9 Destroy 39 | . . . . 2 2 . . 3 . . . . . . . . 32 . . Blast 12 | . . . . . 1 . 1 1 . . . . . . . 1 8 . . Smash 12 | . . . . . . . . . . . . . . . . . 4 2 6 Sever 3 | . . . . . . . . . . . . . . . . . . . 3 Melee Attacks 59 | . . . . . . . . . . . . . . . 1 . 12 11 35 Impact 39 | . . . . . . . . . . . . . . . . . 12 11 16 Slashing 20 | . . . . . . . . . . . . . . . 1 . . . 19 Piercing . | . . . . . . . . . . . . . . . . . . . . Sneak Attacks 4 | . . . . . . . . . . . . . . . . . 3 . 1 Combat Hostiles . | . . . . . . . . . . . . . . . . . . . . Follow-up Attacks 8 | . . . . . . . . . . . . . . . . . 1 1 6 Damage Inflicted 22183 | 204 92 242 1147 3136 2323 . 1360 2628 39 . . . . . 34 320 8857 492 1309 Guns 12994 | 204 92 242 1009 3136 1910 . 230 1868 39 . . . . . . . 4264 . . Cannons 6181 | . . . 138 . 408 . 1060 381 . . . . . . . 320 3865 . 9 Explosions 410 | . . . . . . . 70 340 . . . . . . . . . . . Melee 2485 | . . . . . . . . . . . . . . . 34 . 712 488 1251 Ramming 74 | . . . . . 5 . . . . . . . . . . . 16 4 49 Kinetic 12260 | 53 35 118 1147 3136 2318 . 714 1300 . . . . . . . 320 3119 . . Thermal 6224 | 151 57 124 . . . . . 843 39 . . . . . . . 5010 . . Explosive 410 | . . . . . . . 70 340 . . . . . . . . . . . Electromagnetic 730 | . . . . . . . 576 145 . . . . . . . . . . 9 Impact 1768 | . . . . . . . . . . . . . . . . . 712 488 568 Slashing 717 | . . . . . . . . . . . . . . . 34 . . . 683 Piercing . | . . . . . . . . . . . . . . . . . . . . Highest Corruption 49 | . . . . . 1 . 1 17 . 8 8 8 8 8 8 . 42 2 49 Average Corruption 10 | . . . . . 1 . 1 11 . 8 8 8 8 8 8 . 10 2 22 Corruption Purged 3 | . . . . . . . . . . . . . . . . . 3 . . Corruption Blocked . | . . . . . . . . . . . . . . . . . . . . Effects 156 | . . . . . 1 . 1 35 . 1 13 13 5 1 13 . 40 1 32 Message Errors 41 | . . . . . 1 . 1 5 . . 5 5 2 1 2 . 9 . 10 Matter Fused 28 | . . . . . . . . 8 . 1 1 1 1 . 2 . 10 . 4 Heat Flow Errors 16 | . . . . . . . . . . . . 2 1 . 4 . 5 . 4 Energy Discharges 17 | . . . . . . . . 4 . . 2 2 . . 1 . 5 1 2 Parts Rejected 2 | . . . . . . . . 1 . . . . . . . . . . 1 Parts Fused 1 | . . . . . . . . 1 . . . . . . . . . . . Data Loss (minor) 18 | . . . . . . . . 5 . . 3 2 . . 3 . 2 . 3 Data Loss (major) 8 | . . . . . . . . 1 . . 1 . . . 1 . 4 . 1 Misfires 3 | . . . . . . . . 1 . . . 1 . . . . 1 . . Alerts 5 | . . . . . . . . 1 . . 1 . 1 . . . 1 . 1 Misdirections 13 | . . . . . . . . 6 . . . . . . . . 1 . 6 Weapon Failures 4 | . . . . . . . . 2 . . . . . . . . 2 . . Overload Shots . | . . . . . . . . . . . . . . . . . . . . Overflow Damage 1269 | . . . . . . . 3 2 . . . . . . . . 428 347 489 Projectiles 54 | . . . . . . . . 2 . . . . . . . . 28 . 24 Explosions 3 | . . . . . . . 3 . . . . . . . . . . . . Melee 1212 | . . . . . . . . . . . . . . . . . 400 347 465 Knockbacks 58 | . . . . . 3 . 4 2 . . . . . . . 1 39 1 8 Impact 7 | . . . . . . . . . . . . . . . . . 2 1 4 Kinetic 47 | . . . . . 3 . 4 2 . . . . . . . 1 37 . . Secondary 4 | . . . . . . . . . . . . . . . . . . . 4 Self-Inflicted Damage 301 | . . . . . . . 29 251 . . . . . . . . 1 2 18 Shots 6 | . . . . . . . 1 5 . . . . . . . . . . . Rammed 8 | . . . . . 2 . . . . . . . . . . . 1 1 4 Targets Rammed 15 | . . . . . 2 . . . . . . . . . . . 2 1 10 Kicked 7 | . . . . . . . . . . . . . . . . . 1 . 6 Crushed . | . . . . . . . . . . . . . . . . . . . . Highest Temperature 1103 | 40 58 236 219 288 420 . 1103 382 . . . 121 105 . 174 23 731 . 239 Average Temperature 120 | 18 32 116 59 74 138 . 349 127 . . . 64 58 . 78 7 124 . 85 Received Heat Transfer 2653 | . 18 186 198 396 135 . 153 198 . . . 36 . . . 97 822 54 360 Effects 63 | . . . . . 7 . 39 4 . . . . . . . . 13 . . Shutdowns 5 | . . . . . . . 3 1 . . . . . . . . 1 . . Energy Bleed 7 | . . . . . 1 . 2 1 . . . . . . . . 3 . . Interference 17 | . . . . . 6 . 3 2 . . . . . . . . 6 . . Matter Decay 5 | . . . . . . . 4 . . . . . . . . . 1 . . Short Circuit 8 | . . . . . . . 6 . . . . . . . . . 2 . . Damage (minor) 2 | . . . . . . . 2 . . . . . . . . . . . . Damage (major) 17 | . . . . . . . 17 . . . . . . . . . . . . Damage (core) 2 | . . . . . . . 2 . . . . . . . . . . . . Siege Activations . | . . . . . . . . . . . . . . . . . . . . Martial Activations . | . . . . . . . . . . . . . . . . . . . . Shielding Activations . | . . . . . . . . . . . . . . . . . . . . Robots Disrupted . | . . . . . . . . . . . . . . . . . . . . Combat Hostiles . | . . . . . . . . . . . . . . . . . . . . Robots Corrupted 5 | . . . . . . . 1 . . . . . . . . . 1 2 1 Combat Hostiles 3 | . . . . . . . 1 . . . . . . . . . . 2 . Parts Fried 15 | . . . . . . . 5 1 . . . . . . . . 5 3 1 Impact Corruptions 33 | . . . . . . . . . . . . . . . . . 9 9 15 Robots Melted . | . . . . . . . . . . . . . . . . . . . . Combat Hostiles . | . . . . . . . . . . . . . . . . . . . . Parts Melted 10 | . . 1 . . . . . 1 . . . . . . . . 8 . . Heat Transferred 7817 | 350 125 275 . . . . . 1295 74 . . . . . . . 5698 . . Parts Sabotaged 5 | . . . . . . . . . . . . . . . . . 5 . . Parts Stolen . | . . . . . . . . . . . . . . . . . . . . Parts Stripped . | . . . . . . . . . . . . . . . . . . . . Power Chain Reactions . | . . . . . . . . . . . . . . . . . . . . Alert | -11 -10 -10 -9 -8 -7 -6 -6 -5 -4 -4 -4 -4 -4 -4 -3 -3 -3 -2 -2 ------- Run | Yrd Mat Min Mat Mat Fac Fac DSF Fac Fac Was Fac Upp Upp Zhi Pro Res Arm Res Tes Maximum Alert Level 3 | . . . 1 1 1 . 1 1 . . . . . . . 2 3 2 1 Low Security (%) 52 | 100 100 100 85 34 79 100 63 44 100 100 100 . . . . 10 16 . 40 Level 1 32 | . . . 14 65 20 . 36 55 . . . . . . . 61 21 . 59 Level 2 8 | . . . . . . . . . . . . . . . . 28 28 100 . Level 3 6 | . . . . . . . . . . . . . . . . . 33 . . Level 4 . | . . . . . . . . . . . . . . . . . . . . Level 5 . | . . . . . . . . . . . . . . . . . . . . High Security . | . . . . . . . . . . . . . . . . . . . . Max Security . | . . . . . . . . . . . . . . . . . . . . Sterilizations 1 | . . . . . . . 1 . . . . . . . . . . . . Peak Influence 1020 | 5 20 90 239 386 365 176 232 338 135 . . . . . . 600 1020 584 326 Initial 600 | . . . 17 90 175 176 49 121 135 . . . . . . 600 122 494 288 Average 236 | . 2 60 81 233 123 125 142 196 64 . . . . . . 336 534 537 222 Influence Increases 6953 | 25 37 125 437 820 727 44 223 1007 46 . . 15 . . 65 734 2162 158 328 Destroy 0b10 Robot/C 3100 | . 20 100 300 440 440 . 180 280 . . . . . . . . 1180 100 60 Destroy 0b10 Robot/NC 305 | 25 5 5 20 115 50 . . 30 10 . . . . . 5 5 30 . 5 Destroy Leader 692 | . 12 20 96 122 104 . 30 60 . . . . . . . 2 216 10 20 Allied During Kill 177 | . . . . . . . . . . . . . . . . . 177 . . Successful Hack 202 | . . . 17 5 21 44 . 36 . . . . . . . 21 22 3 33 Disable Machine 570 | . . . . 120 105 . . 150 15 . . . . . . . 150 . 30 Destroy Structure 407 | . . . 4 3 7 . 13 226 6 . . . . . . 16 132 . . Advance Influence 600 | . . . . . . . . . . . . . . . . 600 . . . Partial Spotted 75 | . . . . . . . . 15 15 . . . . . . 15 15 . 15 Lose Combat Pursuer 825 | . . . . 15 . . . 210 . . . 15 . . 60 75 240 45 165 Influence Decreases 6797 | 25 37 80 267 649 752 335 61 962 323 . . 15 . . 65 500 1454 588 684 Entered New Map 1607 | . . . 28 125 211 185 21 111 142 . . . . . . . 112 448 224 Time Decay 3419 | 25 37 70 219 514 491 150 . 460 181 . . 15 . . 65 230 622 70 270 Lost Part 1070 | . . 10 20 10 50 . 40 260 . . . . . . . 40 380 70 190 Lost Ally 460 | . . . . . . . . 40 . . . . . . . 80 340 . . Purge Threat 241 | . . . . . . . . 91 . . . . . . . 150 . . . Squads Dispatched 52 | . 1 . 2 3 6 . 2 7 1 . 1 . . . . 3 17 1 8 Investigation 8 | . 1 . . 1 . . . 1 . . . . . . . 1 1 . 3 Extermination 13 | . . . . . 2 . . 2 1 . 1 . . . . 1 5 . 1 Reinforcement 28 | . . . 2 2 3 . 2 4 . . . . . . . 1 9 1 4 Assault 2 | . . . . . . . . . . . . . . . . . 2 . . Garrison 1 | . . . . . 1 . . . . . . . . . . . . . . Intercept . | . . . . . . . . . . . . . . . . . . . . Searches Triggered . | . . . . . . . . . . . . . . . . . . . . Construction Impeded . | . . . . . . . . . . . . . . . . . . . . Haulers Reinforced 3 | . . . . . 1 . . . . . . . . . . 1 . . 1 Active Scanning Responses . | . . . . . . . . . . . . . . . . . . . . Cargo Convoy Interrupts 1 | . . . . . . . . 1 . . . . . . . . . . . Stealth | -11 -10 -10 -9 -8 -7 -6 -6 -5 -4 -4 -4 -4 -4 -4 -3 -3 -3 -2 -2 --------- Run | Yrd Mat Min Mat Mat Fac Fac DSF Fac Fac Was Fac Upp Upp Zhi Pro Res Arm Res Tes Distress Signals 13 | . . . 2 3 . . . 1 1 . . . . . 2 . 2 1 1 Communications Jammed . | . . . . . . . . . . . . . . . . . . . . Distress Signals . | . . . . . . . . . . . . . . . . . . . . Times Spotted 342 | . 1 5 19 40 24 . 10 54 6 6 . 1 3 . 8 25 95 12 33 Peak Tracking Total 15 | . 1 4 5 7 4 . 5 11 9 6 . 1 4 . 5 13 11 7 15 Tactical Retreats 33 | . . . . 1 . . . 10 . . . 1 . . 2 4 11 1 3 Traps | -11 -10 -10 -9 -8 -7 -6 -6 -5 -4 -4 -4 -4 -4 -4 -3 -3 -3 -2 -2 ------- Run | Yrd Mat Min Mat Mat Fac Fac DSF Fac Fac Was Fac Upp Upp Zhi Pro Res Arm Res Tes Traps Triggered 16 | . 2 . . 3 3 . 1 3 1 . . . . . . . 1 . 2 Indirectly . | . . . . . . . . . . . . . . . . . . . . Trap Hack Attempts . | . . . . . . . . . . . . . . . . . . . . Triggered . | . . . . . . . . . . . . . . . . . . . . Disarmed . | . . . . . . . . . . . . . . . . . . . . Reprogrammed . | . . . . . . . . . . . . . . . . . . . . Reused . | . . . . . . . . . . . . . . . . . . . . Traps Extracted . | . . . . . . . . . . . . . . . . . . . . Installed . | . . . . . . . . . . . . . . . . . . . . Triggered . | . . . . . . . . . . . . . . . . . . . . Machines | -11 -10 -10 -9 -8 -7 -6 -6 -5 -4 -4 -4 -4 -4 -4 -3 -3 -3 -2 -2 ---------- Run | Yrd Mat Min Mat Mat Fac Fac DSF Fac Fac Was Fac Upp Upp Zhi Pro Res Arm Res Tes Machines Disabled 38 | . . . . 8 7 . . 10 1 . . . . . . . 10 . 2 Max in Single Turn 5 | . . . . 1 1 . . 5 1 . . . . . . . 1 . 1 Machines Repaired . | . . . . . . . . . . . . . . . . . . . . Machines Dismantled 2 | . . . . . . . . 2 . . . . . . . . . . . Machines Sabotaged . | . . . . . . . . . . . . . . . . . . . . Overloaded Fab Kills . | . . . . . . . . . . . . . . . . . . . . Hacking | -11 -10 -10 -9 -8 -7 -6 -6 -5 -4 -4 -4 -4 -4 -4 -3 -3 -3 -2 -2 --------- Run | Yrd Mat Min Mat Mat Fac Fac DSF Fac Fac Was Fac Upp Upp Zhi Pro Res Arm Res Tes Machines Accessed 52 | . 2 . 2 3 4 3 . 6 . . 1 1 . 9 . 5 8 3 5 Terminals 36 | . 2 . 2 3 3 2 . 4 . . . 1 . . . 5 6 3 5 Fabricators 3 | . . . . . 1 . . 1 . . . . . . . . 1 . . Repair Stations 4 | . . . . . . 1 . 1 . . 1 . . . . . 1 . . Recycling Units . | . . . . . . . . . . . . . . . . . . . . Scanalyzers . | . . . . . . . . . . . . . . . . . . . . Garrison Access . | . . . . . . . . . . . . . . . . . . . . Total Hacks 164 | . 4 . 5 11 7 12 . 18 . . 7 1 . 48 . 14 16 6 15 Successful 109 | . 1 . 4 6 4 9 . 11 . . 4 1 . 48 . 4 8 2 7 Failed 55 | . 3 . 1 5 3 3 . 7 . . 3 . . . . 10 8 4 8 Catastrophic 8 | . . . . . 1 . . 1 . . . . . . . 3 1 1 1 Database Lockouts . | . . . . . . . . . . . . . . . . . . . . Manual 3 | . . . . . . . . . . . . . . . . . 2 . 1 Terminals 92 | . 4 . 5 11 5 8 . 10 . . . 1 . . . 14 13 6 15 Fabricators 5 | . . . . . 2 . . 2 . . . . . . . . 1 . . Repair Stations 19 | . . . . . . 4 . 6 . . 7 . . . . . 2 . . Recycling Units . | . . . . . . . . . . . . . . . . . . . . Scanalyzers . | . . . . . . . . . . . . . . . . . . . . Garrison Access . | . . . . . . . . . . . . . . . . . . . . Terminal Hacks 97 | . 1 . 4 6 3 7 . 6 . . . 1 . 48 . 4 8 2 7 Record 45 | . . . . . . . . . . . . 1 . 36 . 1 4 2 1 Part Schematic 4 | . . . . . . . . . . . . . . 4 . . . . . Robot Analysis 4 | . . . . . . . . . . . . . . 4 . . . . . Prototype ID Bank 8 | . 1 . 1 1 1 . . . . . . . . 4 . . . . . Open Door 2 | . . . . . . . . . . . . . . . . . 1 . 1 Open DSF 2 | . . . . . . 1 . 1 . . . . . . . . . . . Level Access Points 1 | . . . . . 1 . . . . . . . . . . . . . . Branch Access Points 1 | . . . 1 . . . . . . . . . . . . . . . . Emergency Access Points 9 | . . . . 2 . . . 2 . . . . . . . 1 2 . 2 Garrison Index 1 | . . . . . . 1 . . . . . . . . . . . . . Alert Level 2 | . . . 1 . . . . . . . . . . . . . . . 1 Unreport Threat 3 | . . . . . . . . 2 . . . . . . . 1 . . . Locate Traps 3 | . . . . . 1 1 . . . . . . . . . . . . 1 Dispatch Records 2 | . . . . . . 1 . . . . . . . . . . . . 1 Maintenance Status 1 | . . . . . . . . . . . . . . . . . 1 . . Transport Status 1 | . . . . 1 . . . . . . . . . . . . . . . Reinforcement Status 3 | . . . 1 . . 1 . 1 . . . . . . . . . . . Hauler Manifests 1 | . . . . 1 . . . . . . . . . . . . . . . Registered Components 1 | . . . . . . 1 . . . . . . . . . . . . . Zone Layout 3 | . . . . 1 . 1 . . . . . . . . . 1 . . . Fabricator Hacks 2 | . . . . . 1 . . 1 . . . . . . . . . . . Network Status 1 | . . . . . 1 . . . . . . . . . . . . . . Build 1 | . . . . . . . . 1 . . . . . . . . . . . Repair Station Hacks 10 | . . . . . . 2 . 4 . . 4 . . . . . . . . Scan Component 5 | . . . . . . 1 . 2 . . 2 . . . . . . . . Repair 5 | . . . . . . 1 . 2 . . 2 . . . . . . . . Recycling Unit Hacks . | . . . . . . . . . . . . . . . . . . . . Scanalyzer . | . . . . . . . . . . . . . . . . . . . . Garrison Access Hacks . | . . . . . . . . . . . . . . . . . . . . Unauthorized Hacks . | . . . . . . . . . . . . . . . . . . . . Terminals . | . . . . . . . . . . . . . . . . . . . . Fabricators . | . . . . . . . . . . . . . . . . . . . . Repair Stations . | . . . . . . . . . . . . . . . . . . . . Recycling Units . | . . . . . . . . . . . . . . . . . . . . Scanalyzers . | . . . . . . . . . . . . . . . . . . . . Garrison Access . | . . . . . . . . . . . . . . . . . . . . Data Cores Recovered 2 | . . . . 1 1 . . . . . . . . . . . . . . Used . | . . . . . . . . . . . . . . . . . . . . Hacking Detections 35 | . 2 . 1 3 3 2 . 4 . . . . . . . 5 7 3 5 Full Trace Events 4 | . 1 . . . . . . 1 . . . . . . . . . . 2 Feedback Events . | . . . . . . . . . . . . . . . . . . . . Feedback Blocked . | . . . . . . . . . . . . . . . . . . . . Robot Schematics Acquired 1 | . . . . . . . . . . . . . . . . . . . 1 Robots Built 1 | . . . . . . . . 1 . . . . . . . . . . . Authchips . | . . . . . . . . . . . . . . . . . . . . Time 81 | . . . . . . . . 81 . . . . . . . . . . . Total Robot Build Rating 1 | . . . . . . . . 1 . . . . . . . . . . . Part Schematics Acquired 6 | . . . . . . . . . . . . . . 4 . . . . 2 Parts Built . | . . . . . . . . . . . . . . . . . . . . Authchips . | . . . . . . . . . . . . . . . . . . . . Time . | . . . . . . . . . . . . . . . . . . . . Total Part Build Rating . | . . . . . . . . . . . . . . . . . . . . Parts Repaired 4 | . . . . . . 1 . 1 . . 2 . . . . . . . . Time 334 | . . . . . . 19 . 134 . . 181 . . . . . . . . Parts Recycled . | . . . . . . . . . . . . . . . . . . . . Recycled Matter . | . . . . . . . . . . . . . . . . . . . . Retrieved Matter . | . . . . . . . . . . . . . . . . . . . . Retrieved Components . | . . . . . . . . . . . . . . . . . . . . Parts Scanalyzed . | . . . . . . . . . . . . . . . . . . . . Part Schematics Acquired . | . . . . . . . . . . . . . . . . . . . . Parts Damaged . | . . . . . . . . . . . . . . . . . . . . Bothacking | -11 -10 -10 -9 -8 -7 -6 -6 -5 -4 -4 -4 -4 -4 -4 -3 -3 -3 -2 -2 ------------ Run | Yrd Mat Min Mat Mat Fac Fac DSF Fac Fac Was Fac Upp Upp Zhi Pro Res Arm Res Tes Used RIF Installer . | . . . . . . . . . . . . . . . . . . . . Robots Hacked . | . . . . . . . . . . . . . . . . . . . . Non-combat . | . . . . . . . . . . . . . . . . . . . . Combat . | . . . . . . . . . . . . . . . . . . . . Robot Hacks Applied . | . . . . . . . . . . . . . . . . . . . . Relay Couplers Released . | . . . . . . . . . . . . . . . . . . . . Fabnet Peak Effective % . | . . . . . . . . . . . . . . . . . . . . Robots Rewired 7 | . . . . . . . . . . . . . . . . . 7 . . Allies Hacked 1 | . . . . . . . . 1 . . . . . . . . . . . Hacks Repelled . | . . . . . . . . . . . . . . . . . . . . Allies | -11 -10 -10 -9 -8 -7 -6 -6 -5 -4 -4 -4 -4 -4 -4 -3 -3 -3 -2 -2 -------- Run | Yrd Mat Min Mat Mat Fac Fac DSF Fac Fac Was Fac Upp Upp Zhi Pro Res Arm Res Tes Total Allies 18 | . . . . . . . . 1 . . . . . . . . 17 . . Largest Group 10 | . . . . . . . . 1 . . . . . . . . 10 . . Highest-Rated Group 481 | . . . . . . . . 10 . . . . . . . . 481 . . Highest-Rated Ally 89 | . . . . . . . . 10 . . . . . . . . 89 . . Initial Warlord ECA Mod 90 | . . . . . . . . 9 8 8 8 8 8 8 7 7 7 6 6 Total Orders 6 | . . . . . . . . 3 . . . . . . . 2 1 . . GUARD 1 | . . . . . . . . . . . . . . . . . 1 . . PICKUP 1 | . . . . . . . . 1 . . . . . . . . . . . EXPLORE 4 | . . . . . . . . 2 . . . . . . . 2 . . . Ally Attacks 129 | . . . . . . . . . . . . . . . . . 129 . . Total Damage 2563 | . . . . . . . . . . . . . . . . . 2563 . . Kills 13 | . . . . . . . . . . . . . . . . . 13 . . Allies Corrupted 1 | . . . . . . . . . . . . . . . . 1 . . . Allies Melted . | . . . . . . . . . . . . . . . . . . . . Intel | -11 -10 -10 -9 -8 -7 -6 -6 -5 -4 -4 -4 -4 -4 -4 -3 -3 -3 -2 -2 ------- Run | Yrd Mat Min Mat Mat Fac Fac DSF Fac Fac Was Fac Upp Upp Zhi Pro Res Arm Res Tes Active Infowar (turns) 6176 | 9 303 154 98 1517 814 297 318 410 248 76 407 416 182 78 358 491 . . . Optics 615 | . . . . . . 297 318 . . . . . . . . . . . . Sensors 2736 | . . . . . 70 . . 410 248 76 407 416 182 78 358 491 . . . IFF 205 | . . . . . . . . 205 . . . . . . . . . . . Terrain 564 | 9 303 154 98 . . . . . . . . . . . . . . . . T.N.C. 2261 | . . . . 1517 744 . . . . . . . . . . . . . . Cloaking 709 | . . . . . . . . . . . . 109 42 78 168 312 . . . ECM 72 | . . . . . . . . 34 7 . . . . . . 31 . . . Robot Analysis Total 4 | . . . . . . . . . . . . . . 4 . . . . . Derelict Logs Recovered 4 | . . . . . . . . . . . . 2 2 . . . . . . Drone Launches 13 | . . . . . . . . 4 . . . . . . . 9 . . . Drone Recoveries 2 | . . . . . . . . 1 . . . . . . . 1 . . . Exploration | -11 -10 -10 -9 -8 -7 -6 -6 -5 -4 -4 -4 -4 -4 -4 -3 -3 -3 -2 -2 ------------- Run | Yrd Mat Min Mat Mat Fac Fac DSF Fac Fac Was Fac Upp Upp Zhi Pro Res Arm Res Tes Turns Passed 11608 | 194 303 154 625 1518 1539 307 337 1362 380 76 407 444 182 78 358 496 2103 156 589 Spaces Moved 9522 | 86 161 55 292 515 563 113 101 1264 459 114 239 939 489 189 840 831 1595 233 444 Core 115 | 7 2 . . . . . 2 . 1 . . . . . . . 59 4 40 Treads 2134 | 79 159 55 292 515 563 113 31 . . . . . . . . . 327 . . Legs 1018 | . . . . . . . 68 511 . . . . . . . . 350 . 89 Wheels . | . . . . . . . . . . . . . . . . . . . . Hover 184 | . . . . . . . . . 5 . . . . . . . . . 179 Flight 6071 | . . . . . . . . 753 453 114 239 939 489 189 840 831 859 229 136 Fastest Speed 23 | 50 160 160 160 160 158 238 183 35 36 39 35 35 35 35 35 31 23 27 36 Average Speed 85 | 151 164 160 161 237 237 238 238 75 40 39 36 35 35 35 36 36 84 33 64 Slowest Speed 1600 | 160 450 160 240 245 238 238 1600 400 300 39 39 115 35 35 115 111 270 125 190 Overloaded Moves 4 | . . . . . . . . . . . . . . . . . . . 4 Propulsion Burnouts . | . . . . . . . . . . . . . . . . . . . . Robots Hopped 51 | . . . . . . . . 18 1 . . 1 . . . 21 . . 10 Potential Cave-ins . | . . . . . . . . . . . . . . . . . . . . Cave-ins Triggered . | . . . . . . . . . . . . . . . . . . . . Teleports 1 | . . . . . . . . . . . . . . . . . . . 1 Exploration Rate (%) 39 | 9 25 14 29 44 17 5 60 40 10 82 6 84 63 62 92 29 51 8 63 Regions Visited 19 Branch Regions 7 Pre-discovered Areas 5 | . . . . . . . . . . . . 1 1 3 . . . . . Known Exits Taken 8 | . . . . . 1 1 . . . . 1 1 1 1 1 1 . . . Unknown Exits Taken 8 | 1 1 1 1 1 . . . 1 . . . . . . . . 1 1 . Scrap Searched 9 | . . . . . . . . . . . . 3 3 . 3 . . . . Spaces Dug 1 | . . . . . . . . . . . . . . . . 1 . . . Terrain Destroyed 317 | . . . 2 . 3 . 21 203 3 . . 1 . . . 8 76 . . Melee . | . . . . . . . . . . . . . . . . . . . . Projectile 109 | . . . 2 . 3 . 2 14 3 . . 1 . . . 8 76 . . AOE 208 | . . . . . . . 19 189 . . . . . . . . . . . Terrain Rammed . | . . . . . . . . . . . . . . . . . . . . Walls Destroyed . | . . . . . . . . . . . . . . . . . . . . Machines Disabled . | . . . . . . . . . . . . . . . . . . . . Actions | -11 -10 -10 -9 -8 -7 -6 -6 -5 -4 -4 -4 -4 -4 -4 -3 -3 -3 -2 -2 --------- Run | Yrd Mat Min Mat Mat Fac Fac DSF Fac Fac Was Fac Upp Upp Zhi Pro Res Arm Res Tes Total 11913 | 122 184 85 370 661 669 152 170 1499 649 146 560 1052 498 200 892 985 2075 295 649 Wait 1001 | . . . . 16 7 19 4 34 169 22 309 92 . . 45 109 36 34 105 Move 9406 | 85 160 54 291 514 562 112 100 1228 457 113 238 936 488 188 839 790 1594 232 425 Hop 46 | . . . . . . . . 17 1 . . 1 . . . 19 . . 8 Pick Up 254 | 14 9 4 16 25 17 8 20 31 8 6 6 7 . 3 1 12 46 6 15 Fast Attach 137 | . 5 . 2 2 3 . . 22 2 . 1 1 3 2 2 6 69 1 16 Attach 130 | 7 . 1 5 4 5 7 5 25 4 1 2 4 . . 1 6 28 5 20 Detach 17 | . . . . . . . . 2 1 . . . . . . 1 7 . 6 Swap 87 | . 1 2 7 12 5 3 5 21 . . . 1 3 2 2 . 21 1 1 Drop 261 | . 1 3 16 24 14 3 17 40 4 4 4 8 4 5 1 17 84 7 5 Fire 401 | 16 8 21 33 64 52 . 18 53 3 . . . . . . 22 109 . 2 Melee 45 | . . . . . . . . . . . . . . . 1 . 8 8 28 Ram 6 | . . . . . . . . . . . . . . . . . 1 . 5 Kick 7 | . . . . . . . . . . . . . . . . . 1 . 6 Crush 2 | . . . . . 2 . . . . . . . . . . . . . . Escape Stasis 10 | . . . . . 2 . . . . . . . . . . . . 1 7 Rewire 74 | . . . . . . . 1 . . . . 2 . . . . 71 . . Trap . | . . . . . . . . . . . . . . . . . . . . Miscellaneous 29 | . . . . . . . . 26 . . . . . . . 3 . . . Route ------- -11/Scrapyard -10/Materials -10/Mines -9/Materials (discovered 3 exits: *Mat / *Min x2) -8/Materials -7/Factory (discovered 4 exits: *Fac x4) -6/Factory -6/DSF -5/Factory -4/Factory -4/Waste -4/Factory -4/Upper Caves -4/Upper Caves -4/Zhirov -3/Proximity Caves -3/Research -3/Armory -2/Research -2/Testing History --------- Turn | Location | Event 19 | -11/Scrapyard | Discovered new exit (range 15) 195 | -11/Scrapyard | Entered Materials 275 | -10/Materials | Discovered new exit (range 9) 305 | -10/Materials | Build established: Mutant 498 | -10/Materials | Entered Mines 499 | -10/Mines | Assembled infested the area 634 | -10/Mines | Discovered new exit (range 11) 652 | -10/Mines | Entered Materials 652 | -9/Materials | Evolved 2 slots: Weapon x2 783 | -9/Materials | Identified exit to Mines 1049 | -9/Materials | Build established: Tank 1227 | -9/Materials | Discovered new exit (range 15) 1277 | -9/Materials | Entered another Materials area 1277 | -8/Materials | Evolved 2 slots: Utility x1, Weapon x1 1926 | -8/Materials | Build established: Gunner 2681 | -8/Materials | Discovered new exit (range 16) 2795 | -8/Materials | Entered Factory 2795 | -7/Factory | Evolved 2 slots: Propulsion x1, Weapon x1 3108 | -7/Factory | Build established: Executioner 3214 | -7/Factory | Discovered new exit (range 12) 3861 | -7/Factory | Identified exit to Factory 4159 | -7/Factory | Build established: Hacker-Executioner 4248 | -7/Factory | Garrison activated, responded to threat 4334 | -7/Factory | Entered another Factory area 4334 | -6/Factory | Evolved 2 slots: Utility x2 4561 | -6/Factory | Repaired Arm. Treads 4639 | -6/Factory | Identified exit to DSF 4641 | -6/Factory | Entered DSF 4690 | -6/DSF | Additional patrols routed to DSF 4771 | -6/DSF | Discovered new exit (range 19) 4864 | -6/DSF | Sterilization system engaged 4884 | -6/DSF | Ambient heat levels rising (+10) 4899 | -6/DSF | Ambient heat levels rising (+10) 4914 | -6/DSF | Ambient heat levels rising (+10) 4929 | -6/DSF | Ambient heat levels rising (+10) 4944 | -6/DSF | Ambient heat levels rising (+10) 4959 | -6/DSF | Ambient heat levels rising (+10) 4964 | -6/DSF | Core integrity fell below 50% 4974 | -6/DSF | Ambient heat levels rising (+10) 4978 | -6/DSF | Entered Factory 4978 | -5/Factory | Evolved 2 slots: Propulsion x2 5337 | -5/Factory | Build established: Executioner 5575 | -5/Factory | Fabricated A-02 Transporter (x1) 5614 | -5/Factory | Repaired Thunder Leg 5673 | -5/Factory | Lost 3 parts (1u2w) 5805 | -5/Factory | Lost 3 parts (1n2w) 5845 | -5/Factory | Cargo convoy interrupted 5915 | -5/Factory | System corruption reached 10% 5965 | -5/Factory | Lost 12 parts (4n3u5w) 6335 | -5/Factory | Discovered new exit (range 13) 6340 | -5/Factory | Entered another Factory area 6340 | -4/Factory | Evolved 2 slots: Power x1, Utility x1 6609 | -4/Factory | Build established: Hacker-Mutant 6720 | -4/Factory | Manually triggered Chute Trap 6720 | -4/Factory | Sucked down chute 6720 | -4/Factory | Entered Waste 6727 | -4/Waste | Found Prototype Device 6735 | -4/Waste | EMP discharged 6741 | -4/Waste | Spotted C-40 Crusher 6742 | -4/Waste | Spotted C-40 Crusher 6748 | -4/Waste | Spotted C-40 Crusher 6778 | -4/Waste | Spotted C-40 Crusher 6781 | -4/Waste | Spotted C-40 Crusher 6781 | -4/Waste | Spotted C-40 Crusher 6789 | -4/Waste | Discovered new exit (range 16) 6795 | -4/Waste | Identified exit to Factory 6796 | -4/Waste | Entered Factory 6861 | -4/Factory | Discovered new exit (range 5) 6862 | -4/Factory | Identified exit to Upper Caves 6933 | -4/Factory | Repaired Broken Nuclear Pulse Array? 7194 | -4/Factory | Repaired Broken Adv. Phase Shifter? 7203 | -4/Factory | Entered Upper Caves 7209 | -4/Upper Caves | Met a Warlord Commander 7211 | -4/Upper Caves | Warlord Commander delivered Encrypted Comm Array 7212 | -4/Upper Caves | Found Encrypted Comm Array 7281 | -4/Upper Caves | Learned Research security intel 7345 | -4/Upper Caves | Identified Exp. Cloaking Device 7440 | -4/Upper Caves | Spotted B-86 Titan 7575 | -4/Upper Caves | Discovered new exit (range 13) 7579 | -4/Upper Caves | Identified exit to Upper Caves 7603 | -4/Upper Caves | Encountered a Warlord checkpoint 7647 | -4/Upper Caves | Entered another Upper Caves area 7667 | -4/Upper Caves | Encountered a Warlord checkpoint 7811 | -4/Upper Caves | Learned Research security intel 7824 | -4/Upper Caves | Discovered new exit (range 15) 7828 | -4/Upper Caves | Identified exit to Zhirov 7829 | -4/Upper Caves | Entered Zhirov 7829 | -4/Zhirov | Discovered new exit (range 3) 7846 | -4/Zhirov | Learned location of Quarantine (-3) 7846 | -4/Zhirov | Learned location of Testing (-2) 7846 | -4/Zhirov | Learned location of Command (-1) 7857 | -4/Zhirov | Found Alien Artifact 7906 | -4/Zhirov | Identified exit to Proximity Caves 7907 | -4/Zhirov | Entered Proximity Caves 7909 | -3/Proximity Caves | Spotter reported a threat 7910 | -3/Proximity Caves | Spotter reported a threat 8038 | -3/Proximity Caves | Spotted B-86 Titan 8084 | -3/Proximity Caves | Spotter reported a threat 8106 | -3/Proximity Caves | Spotter reported a threat 8227 | -3/Proximity Caves | Discovered new exit (range 10) 8239 | -3/Proximity Caves | Identified exit to Research 8265 | -3/Proximity Caves | Entered Research 8265 | -3/Research | Evolved 2 slots: Propulsion x1, Utility x1 8266 | -3/Research | Identified exit to Armory 8761 | -3/Research | Entered Armory 8787 | -3/Armory | Lost 3 parts (1p2u) 8821 | -3/Armory | Found Adv. Force Booster 9424 | -3/Armory | Build established: Scavenger-Executioner 10054 | -3/Armory | Found Gamma Bomb Array 10057 | -3/Armory | Found Gamma Bomb Array 10060 | -3/Armory | Found Gamma Bomb Array 10261 | -3/Armory | First assault squad dispatched 10316 | -3/Armory | Lost 3 allies 10341 | -3/Armory | System corruption reached 10% 10437 | -3/Armory | Core integrity fell below 50% 10442 | -3/Armory | Lost 24 parts (4p7n6u7w) 10491 | -3/Armory | Lost 3 parts (1n2u) 10499 | -3/Armory | Core integrity fell below 20% 10669 | -3/Armory | Found Unknown Device 10669 | -3/Armory | Identified Quantum Capacitor 10724 | -3/Armory | Found Adv. Force Booster 10725 | -3/Armory | Found Adv. Force Booster 10727 | -3/Armory | Found Adv. Force Booster 10731 | -3/Armory | Found Adv. Force Booster 10756 | -3/Armory | Assisted by bots powering up and referring to "LRC-V3" 10768 | -3/Armory | Found Prototype Device 10768 | -3/Armory | Identified Adv. Kinecellerator 10822 | -3/Armory | System corruption reached 30% 10856 | -3/Armory | Discovered new exit (range 5) 10863 | -3/Armory | Lost 10 allies 10864 | -3/Armory | Entered Research 10864 | -2/Research | Evolved 2 slots: Power x1, Propulsion x1 10887 | -2/Research | Lost 8 parts (1p5n2u) 11006 | -2/Research | Discovered new exit (range 16) 11020 | -2/Research | Entered Testing 11049 | -2/Testing | Lost 7 parts (1p6n) 11074 | -2/Testing | Found Prototype Energy Cannon 11074 | -2/Testing | Identified Hpw. Disruptor Cannon 11103 | -2/Testing | Spotted Striker 11132 | -2/Testing | Spotted Striker 11176 | -2/Testing | Found Prototype Hackware 11176 | -2/Testing | Identified Exp. Hacking Suite 11197 | -2/Testing | Scanned by Researcher 11208 | -2/Testing | Found Prototype Protection 11209 | -2/Testing | Identified Hvy. Regenerative Plating 11212 | -2/Testing | Found Prototype Protection 11213 | -2/Testing | Identified SHELL Armor 11215 | -2/Testing | System corruption reached 10% 11239 | -2/Testing | Lost 3 parts (1p1n1u) 11272 | -2/Testing | Build established: Mutant 11349 | -2/Testing | Found Hvy. Regenerative Plating 11363 | -2/Testing | Identified Transdimensional Reconstructor 11363 | -2/Testing | Warped through subspace 11380 | -2/Testing | System corruption reached 30% 11428 | -2/Testing | Core integrity fell below 50% 11533 | -2/Testing | Lost 3 parts (2p1u) 11537 | -2/Testing | Core integrity fell below 20% 11577 | -2/Testing | Lost 7 parts (1p4n2w) 11609 | -2/Testing | Destroyed by H-88 Terminator with KE Penetrator Last Messages --------------- 6T5&RPSQU# A USKKUM4DK553ORBPJ 6X>4 Slug penetrates Wall. P-80 Master destroyed. Dropped Lgt. Quantum Reactor. Acquired Quantum Reactor. Acquired Cld. Linear Gravjet. System corrupted: Component data lost. Focalizer disabled. K-01 Serf collects debris. Acquired System Shield. Focalizer disabled. Slug penetrates Focalizer. Slug penetrates Wall. System corrupted: Heat flow error (+288). System corrupted: Cld. Linear Gravjet rejected. Slug penetrates TB3 Reconfiguration Apparatus. ALERT: Terrabomb reconfiguration apparatus unstable. Structure dematerialization imminent. TB3 Reconfiguration Apparatus disabled. [Achievement: 20k Club] Map ----- +----------------------------------------------------+ | ?????????????????????????????????????????????????? | | ?????????????????????????????????????????????????? | | ?????????????????????????????????????????????????? | | ?????????????????????????????????????????????????? | | ????????????????#######??????????????????????????? | | ????????????????#[ #??????????????????????????? | | ????????????????# #??????????????????????????? | | ????????????????# "" #??????????????????????????? | | ????????????????# "" #??????????????????????????? | | ????????????????# """ ########???????????????????? | | ????????????????# / #???????????????????? | | ????????????????# """ ###### #???????????????????? | | ????????????????# """ #????# #???????????????????? | | ????????????????# "" ######+#######?????????????? | | ???????????###### ## #?????????????? | | ???????????# # ## #?????????????? | | ???????????# # * ## h""" #?????????????? | | ???????????# ###/#### h" #?????????????? | | ??########## + c " " #?????????????? | | ? # # " """ #?????????????? | | ? # + """"" #?????????????? | | ?? # #gk ""&"" #?????????????? | | ??? # #### # """""" #?????????????? | | ??""" """ # #??# #g "" """g #?????????????? | | """ """ # #??# # "" " #?????????????? | | """ "" # #??# # @ "=" #?????????????? | | """ "" " #??# # #?????????????? | | """ "" # ####"#+#############?????????????? | | """ """ # # #???????????????????? | | """ " # # [ #???????????????????? | | [==#! # % #???????????????????? | | #####+#"####%* # #???????????????????? | | ????# !/ ! #/ """ """ #???????????????????? | | ????# / !#! """ """ #???????????????????? | | ????# / *"% """ """ #???????????????????? | | ##### % =#/ #???????????????????? | | # = # "" """ #???????????????????? | | # # "T """?? #???????????????????? | | # % # "" """???????????????????????? | | + """ # ???????????????????????? | | "" # """ ###########??????????????????????? | | """ # """ #????????????????????????????????? | | """ # #????????????????????????????????? | | # #????????????????????????????????? | | /#### """ #????????????????????????????????? | | #### """" #????????????????????????????????? | | """" "????????????????????????????????? | | ! """ "????????????????????????????????? | | T????????????????????????????????? | | "" "????????????????????????????????? | +----------------------------------------------------+ Best States ------------- Heat Dissipation 153 Energy Generation 61 Energy Capacity 910 Matter Stores 400 Matter Capacity 600 Sight Range 20 Robot Scan Range 16 Terrain Scan Range 16 Terrain Scan Density 10 ECM Strength 2 Cloak Strength 4 Power Amplification 30 Armor Coverage 1500 Resistance: KI 30 Weapon Shielding 66 Phase Shifting 15 Evasion (%) 80 Targeting Accuracy 6 Target Analysis 8 Recoil Reduction 6 Kinecelleration 50 Force Boost 40 Salvage Targeting 6 Offensive Hacking 24 Defensive Hacking 26 Item Schematics ----------------- Assault Drone Bay | -4/Zhirov | Free Exp. Heat Sink | -4/Zhirov | Free Exp. Optical Array | -4/Zhirov | Free Imp. Arc Thrower | -4/Zhirov | Free Centrium Greatsword | -2/Testing | Archive Hvy. Tesla Rifle | -2/Testing | Archive Robot Schematics ------------------ B-74 Champion | -2/Testing | Archive Fabricated ------------ A-02 Transporter | x1 | -5/Factory | Preloaded Repaired ---------- Arm. Treads | 46% | -6/Factory Thunder Leg | 10% | -5/Factory Nuclear Pulse Array | 36% | -4/Factory | Broken Adv. Phase Shifter | 4% | -4/Factory | Broken Alien Tech Used ----------------- Transdimensional Reconstructor Achievements -------------- 20k Club Rockin' Loadout Wheee! Challenges ------------ None Game ------ Seed RelayMakeshiftInsulator Manual? 0 Play Time 04:18:57 Cumulative 38.2 hours Start 2025.09.04 @ 02:39:42 End 2025.09.04 @ 07:06:12 Sessions 1 Manual Loads 0 Difficulty Rogue Special Mode None Game No. 26 Rogue 26 Adventurer 0 Explorer 0 Win Type - Total 0 Types 0/0/0/0/0/0/0/0/0/0 Lore% 18 Gallery% 35 Achievement% 30 Wizard Run 0 Options --------- Layout 0 ASCII 0 Keyboard 0 Movement Mouse Keybinds 0 Fullscreen 1 Font 12/Smallcaps Map View 38x28 Zoom Use 96% Tactical HUD 0 Map Filters NONE Filters NONE Steam SD RUN: 06c9b98d-5144-41ad-878b-aa6b272a3e55